{"text_format":"3","workbook":"xlsx","n_sheets":2,"sheets":["附件2正式项目","附件3预备项目"],"not_rendered":{"defined_names":5},"read":"whole","date_system":"1900"}

{"sheet":"附件2正式项目","index":0,"n_rows":234,"n_cols":13,"rows_kept":234,"merged":[[0,0,0,1],[1,0,1,12],[2,9,2,12],[3,0,4,0],[3,1,4,1],[3,2,4,2],[3,3,4,3],[3,4,4,4],[3,5,4,5],[3,6,3,7],[3,8,4,8],[3,9,4,9],[3,10,4,10],[3,11,4,11],[3,12,4,12],[6,1,6,2],[7,1,7,2],[9,1,9,2],[18,1,18,2],[24,1,24,2],[39,1,39,2],[48,1,48,2],[70,1,70,2],[82,1,82,2],[96,1,96,2],[100,1,100,2],[115,1,115,2],[128,1,128,2],[143,1,143,2],[153,1,153,2],[161,1,161,2],[177,1,177,2],[178,1,178,2],[190,1,190,2],[205,1,205,2],[206,1,206,2],[221,1,221,2],[225,1,225,2],[226,1,226,2],[230,1,230,2],[233,0,233,12]]}
["附件2"]
["河源市2022年重点建设项目计划表"]
[{"$nulls":9},"资金单位：万元"]
["序号","项目名称","建设内容及规模","建设起止年限","总投资","预计到\n2021年底\n累计完成\n投资","2022年投资计划",null,"（拟）\n开工时间","业主单位","责任\n单位","行业\n类型","申报\n类型"]
[{"$nulls":6},"2022年\n计划投资","2022年主要\n建设内容"]
[null,"合计：189项",null,null,{"$f":"E9+E24+E48+E82+E100+E128+E153+E178+E206+E226","v":15033395},3432530,3217604]
[null,"（一）续建项目：113项",null,null,{"$f":"E10+E25+E49+E83+E101+E129+E154+E179+E207+E227","v":11378901},3432530,2302860]
[null,"（二）计划新开工项目：76项",null,null,{"$f":"E19+E40+E71+E97+E116+E144+E162+E191+E222+E231","v":3654494},0,914744]
["一","市直（12项）",null,null,{"$f":"E10+E19","v":4021919},964850,719800]
[null,"（一）续建项目：8项",null,null,{"$f":"SUM(E11:E18)","v":3734802},964850,674800]
[1,"梅州至龙川铁路河源段","铁路26.18公里。","2020-2024",435870,147850,108000,"路基、桥梁、征地拆迁等","2020-06-01","中国铁路广州局集团有限公司","市交通运输局","交通运输工程","省重点项目"]
[2,"河惠莞高速公路龙川至寻乌（省界）支线工程","高速公路9.3公里。","2020-2024",162398,40000,38000,"路基、桥涵","2020-12-01","广东省南粤交通投资建设有限公司","市交通运输局","交通运输工程","省重点项目"]
[3,"长春至深圳国家高速公路河源热水至惠州平南段改扩建项目（河源段）","河源段高速公路改扩建42.79公里，其中东源县8.07公里、源城区34.72公里。","2021-2026",634262,5000,46800,"临时工程、路基工程及桥涵基础施工","2021-12-30","广东省高速公路有限公司","市交通运输局","交通运输工程","省重点项目"]
[4,"河源市2022年主网及配网建设工程","建设35千伏及以上主网、10千伏及以下配网输变电工程。",2022,150000,0,150000,"土建施工","2022-01-01","河源供电局","河源供电局","能源保障工程","省重点项目"]
[5,"国道G205线河源市热水至埔前段改线工程","全长36.2公里，采用双向六车道一级公路技术标准，兼顾城市主干道功能，设计速度80公里/小时。","2020-2024",443218,100000,120000,"路基、桥涵、隧道","2020-07-01","河源市公路事务中心","市公路事务中心","交通运输工程","省重点项目"]
[6,"河源市热力发电厂项目","占地面积178亩，日处理垃圾规模1800吨,项目分两期建设，一期1200吨/日，二期600吨/日。","2021-2024",87354,2000,45000,"主体工程施工","2021-12-01","市城管执法局","市城管执法局","生态环保工程","省重点项目"]
[7,"阿里巴巴广东云计算数据中心河源项目","总占地面积32.2万平方米，总建筑面积37.6万平方米，项目分高新区、源城区、江东新区地块，每个地块建设内容均由5栋数据楼、1栋综合办公楼、门卫及110KV用户变电站组成。","2018-2028",1800000,660000,160000,"土建工程、设备安装","2018-06-01","阿里巴巴信息港（广东）有限公司","市工业和信息化局","信息基础设施工程","省重点项目"]
[8,"河源市中小学生综合实践基地","总用地面积约5万平方米，总建筑面积4.2万平方米，一期主要建设专题教室、科工楼、设备房、学生宿舍、教师宿舍、食堂、风雨操场等；二期主要建设剧院、综合楼。","2021-2023",21700,10000,7000,"土建工程、装修工程及部分设备购置","2021-07-01","河源市客邑文化旅游投资有限公司","市国资委","教育项目","市重点项目"]
[null,"（二）计划新开工项目：4项",null,null,{"$f":"SUM(E20:E23)","v":287117},{"$f":"SUM(F20:F23)","v":0},{"$f":"SUM(G20:G23)","v":45000}]
[9,"河源市公共卫生医学中心新建项目","总用地面积2.8万平方米，总建筑面积4.7万平方米，新建传染病防治大楼、职业病防治大楼、检验检测大楼、生活配套大楼等，拟设置床位450张。","2022-2025",50122,0,15000,"土建施工","2022-06-01","河源市职业病防治院（河源市慢性病防治院）","市卫生健康局","医疗卫生项目","省重点项目"]
[10,"河源市妇女儿童医疗中心新建项目","总用地面积9.1万平方米，总建筑面积21.5万平方米。新建门诊大楼、住院大楼、医技大楼、后勤及行政大楼、教学科研大楼、感染大楼及附属设施，拟设置床位1000张。","2022-2025",150000,0,20000,"土建施工","2022-06-01","河源市妇幼保健院","市卫生健康局","医疗卫生项目","省重点项目"]
[11,"河源市公安监管中心","总用地面积11.48万平方米，建筑面积6.89万平方米，新建市看守所（含武警中队营房）、市拘留所、市戒毒所、公安监管医院、公安执法办案中心。","2022-2026",69200,0,5000,"征地拆迁、三通一平及土石方开挖","2022-11-01","河源市公安局","河源市公安局","居民保障项目","市重点项目"]
[12,"河源市社会公共安全视频监控系统建设项目","在市区新建930个高清一类摄像头、1353个人脸抓拍摄像机、新建15个治安卡口、改造12个治安卡口及不少于13000路的智能视觉中心和视频图像智能化应用。","2022-2024",17795,0,5000,"设备安装及系统建设","2022-01-01","河源市公安局","河源市公安局","居民保障项目","市重点项目"]
["二","源城区（18项）",null,null,{"$f":"E25+E40","v":1482129},373500,206754]
[null,"（一）续建项目：11项",null,null,{"$f":"SUM(E27:E39)","v":1304290},{"$f":"SUM(F27:F39)","v":373500},156254]
[13,"河源客天下国际旅游度假区","建设客天下•健康养老、二期旅游、南区旅游项目项目。","2019-2025",{"$f":"E27+E28+E29","v":490000},30000,50000,"土建施工",null,"河源市广润投资有限公司","源城区政府","服务业项目","省重点项目"]
["13-1","客天下•健康养老项目","建设客家民宿、客家山寨院落养生会所、精品健康养生公寓等，总建筑面积8.6万平方米。","2019-2025",70000,10000,15000,"精品健康养生公寓达验收移交标准、客家文化中心二期民宿竣工","2019-12-01","河源市广润投资有限公司"]
["13-2","客天下•二期旅游项目","总建筑面积38.9万平方米，新建博客小镇、恐龙博物馆、游客接待中心、非遗文化小镇、酒店公寓。","2021-2025",230000,20000,25000,"土建工程","2021-03-01","河源市广润投资有限公司"]
["13-3","客天下•南区旅游项目","总建筑面积36.8万平方米，主要建设酒店公寓、特色民宿院落、温泉小镇等。","2022-2025",190000,0,10000,"土建工程","2022-03-01","河源市广润投资有限公司"]
[14,"河源春沐源·岭南生态旅游度假区项目","项目总用地面积约521亩，规划建设酒店、配套商业街、文化创意类产品；整体打造生态、自然、富有美学的人文景观体系和社区生态环境。","2020-2024",200000,80000,20000,"新增建设用地、音乐礼堂、商业配套等","2020-02-01","河源春沐源旅游文化有限公司","源城区政府","服务业项目","省重点项目"]
[15,"河源春沐源·岭南生态农业观光建设项目","总占地面积1400亩，建设内容为景观农业示范区，景观花海，果蔬无土种植温室大棚，蔬菜加工厂，农业科技中心，研发基地，农业公园，儿童营地，商业长廊，体育公园，温泉公园项目以及道路，给排水等市政农业观光配套设施，主要产出以果蔬菜，加工农产品及花卉等","2016-2023",300000,168000,8000,"农旅配套设施、体育公园、市政配套、道路建设、景观建设等","2016-11-01","河源弘稼农业科技有限公司","源城区政府","服务业项目","省重点项目"]
[16,"河源鹏城·科技生态园建设项目","用地面积7.8万平方米，总建筑面积24.4万平方米，规划建设成集居住、产研及商务为一体的科技生态园。","2020-2023",79620,35000,8000,"厂房建设","2020年9月","河源市共营贸易发展有限公司","源城区政府","服务业项目","市重点项目"]
[17,"源城区贝仕达克智能控制器及智能产品生产项目","占地面积约10万平方米，主要建设厂房、办公楼、员工宿舍及附属配套工程，年产智能产品2800万个。","2018-2023",45320,32000,10000,"土建施工，设备购置","2018-05-01","广东贝仕达克科技有限公司","源城区政府","服务业项目","市重点项目"]
[18,"源城区富为电子组装产品生产项目","占地面积3万平方米，总建筑面积4.8万平方米，新建厂房、办公楼、宿舍等，年产35万台蓝牙耳机、56万台蓝牙音响。","2020-2023",30000,12000,10000,"土建施工","2020-10-01","河源市富为实业有限公司","源城区政府","工业项目","市重点项目"]
[19,"源城区时进科技有限公司家具家电产品生产项目","总用地面积5.6万平方米，总建筑面积10万平方米，新建10栋厂房、1栋办公楼、3栋人才公寓，主要生产智能家具用品、家电产品、五金制品等。","2021-2024",100000,5000,15000,"建设厂房、宿舍、办公楼","2021-06-01","广东时进科技有限公司","源城区政府","工业项目","市重点项目"]
[20,"源城区帝澳森家居产品生产项目","总占地面积19801.25平方米，总建筑面积约6万平方米，建设厂房6栋、宿舍楼2栋、办公楼1栋","2021-2023",20000,2000,8000,"建设厂房、宿舍、办公楼","2021-09-01","广东帝澳森家居科技有限公司","源城区政府","工业项目","市重点项目"]
[21,"源城区安焕电子产品生产项目","总用地面积2万平方米，总建筑面积3.6万平方米，新建1栋办公楼、2栋厂房、3栋人才公寓，主要生产电子元器件产品。","2021-2022",12000,4000,8000,"土建施工","2021-07-01","安焕（河源）电子有限公司","源城区政府","工业项目","市重点项目"]
[22,"源城区东城幼儿园","占地面积11826平方米，建筑面积约24768平方米。新建1栋综合楼、1栋教学楼及附属设施，新建一层地下停车场。","2021-2022",17254,5000,12254,"完成主体工程并交付使用","2021-07-01","源城区教育局","源城区政府","教育项目","省重点项目"]
[23,"源城区中山路幼儿园","占地面积7943平方米，建筑面积13500平方米，新建1栋综合楼，总规模为18个班，幼儿人数为630人。建设内容主要为活动室、功能室、办公室、厨房、体育活动场地等。","2021-2023",10096,500,7000,"完成主体工程","2021-12-01","源城区教育局","源城区政府","教育项目","市重点项目"]
[null,"（二）计划新开工项目：7项",null,null,{"$f":"SUM(E41:E47)","v":177839},{"$f":"SUM(F41:F47)","v":0},50500]
[24,"华润怡宝(河源)饮用水生产基地一期项目","一期拟用地面积约330亩，建设大型饮用水生产基地。","2022-2025",100000,0,15000,"建设一期厂房、宿舍楼、办公楼等","2022-10-01","华润怡宝饮料（中国）有限公司","源城区政府","工业项目","省重点项目"]
[25,"源城区威利玩具生产项目","总用地面积1.45万平方米，新建厂房、宿舍等，主要生产塑胶玩具、电动玩具及动漫产品等。","2022-2023",16000,0,8000,"土建施工","2022-03-01","威利文化产业（河源）有限公司","源城区政府","工业项目","市重点项目"]
[26,"埔前中学扩建工程","用地面积2204平方米，建筑面积1.6万平方米，新建1栋教学楼、1栋教师宿舍、1栋学生宿舍及新建停车场、篮球场和拆建围墙等附属设施。","2022-2023",8454,0,5000,"土建施工","2022-02-01","源城区教育局","源城区政府","教育项目","市重点项目"]
[27,"源城区疾病预防控制中心新建项目","规划用地面积7600平方米，总建筑面积8712平方米，新建一栋8层综合大楼和一栋1层消杀用品库。","2022-2023",8000,0,5000,"大楼主体、装修工程及设备采购安装","2022-01-01","源城区疾病预防控制中心","源城区政府","医疗卫生项目","市重点项目"]
[28,"源城区妇幼保健计划生育服务中心二期项目","用地面积4829平方米，总建筑面积1.73万平方米，新建1栋框架结构10层综合大楼。","2022-2023",20885,0,5000,"土建施工","2022-10-01","源城区妇幼保健计划生育服务中心","源城区政府","医疗卫生项目","市重点项目"]
[29,"源城区上城社区卫生服务中心迁建项目","用地面积为1722平方米，建筑面积4686平方米，建设内容包括拆除原址3栋旧楼，新建1栋社区卫生服务中心，设置床位50张。",2022,4500,0,4500,"土建施工、装修工程及设备采购安装","2022-01-01","源城区上城社区卫生服务中心","源城区政府","医疗卫生项目","市重点项目"]
[30,"源城区崇志茶观园","用地面积5.3万平方米，建筑面积3.8万平方米，拟建2栋宿舍、1栋游客接待中心、1栋餐饮配套服务中心、2栋教学课室，并拟建多彩茶叶百茶园。","2022-2025",20000,0,8000,"宿舍、教学楼、游客接待中心主体建设","2022-06-01","河源市崇志文化传播有限公司","源城区政府","农林牧渔项目","市重点项目"]
["三","东源县（31项）",null,null,{"$f":"E49+E71","v":1618747},338031,420032]
[null,"（一）续建项目：21项",null,null,{"$f":"SUM(E50:E70)","v":1171655},{"$f":"SUM(F50:F70)","v":338031},{"$f":"SUM(G50:G70)","v":274032}]
[31,"河源高铁北站（东源站）交通枢纽及配套设施项目","项目占地面积84.3万平方米，总建筑面积14.2万平方米，其中综合枢纽工程含站前广场、综合交通枢纽工程、高铁小镇建设；市政配套工程包含三条高铁接驳道路建设。","2021-2024",148867,30000,30000,"接驳一线及商业首期开发区建设","2021-06-01","东源县城乡建设投资有限公司","东源县政府","交通运输工程","省重点项目"]
[32,"深圳盐田（东源）产业转移工业园三期（启动区）基础设施建设项目","项目总面积约1.13平方公里，新建园区道路工程、综合管线工程、标准化厂房、商业配套、分离式立体交叉口、挡土墙和排水渠、停车场、园区污水处理厂建设工程及其他相关配套设施建设工程等。","2021-2024",148685,1000,15000,"大型土石方平整工程、高压线迁改、征地拆迁","2021-10-01","东源县融湾工业投资有限公司","东源县政府","产业发展平台项目","省重点项目"]
[33,"东源东瑞农牧发展有限公司（船塘）现代农业生态养殖基地","占地面积80.7万平方米，总建筑面积36.8万平方米，建设猪舍、办公生活区、有机肥厂、污水处理厂等，年新增出栏生猪30万头。","2021-2023",70000,15000,25000,"完成猪舍、办公生活区、有机肥厂、污水处理厂建设","2021-04-01","东源东瑞农牧发展有限公司","东源县政府","农林牧渔项目","省重点项目"]
[34,"东源县卫生职业技术学校（南北校区）","用地面积34万平方米，总建筑面积约20万平方米，新建实训楼、校舍、创业园、图书馆、食堂、风雨操场，运动场地、停车设施等配套工程。","2021-2023",98000,10000,20000,"完成实训楼、校舍、图书馆、风雨操场等主体工程","2021-03-01","东源县教育局","东源县政府","教育项目","省重点项目"]
[35,"东源县职业教育培训基地迁建项目","占地面积17万平方米，总建筑面积12.8万平方米，建设教学楼、综合楼、学员楼、食堂、图书馆、文体活动中心以及室外文体设施、露天停车场等公共配套设施。","2020-2023",80000,20000,20000,"教学楼、综合楼等主体工程施工","2020-09-01","东源县城乡建设投资有限公司","东源县政府","教育项目","省重点项目"]
[36,"东源县第三人民医院","总用地面积9.6万平方米，总建筑面积6.25万平方米，按三级乙等综合医院标准规划建设，设置床位数500张。","2020-2023",63483,16000,15000,"完成综合楼、住院楼、周转楼、传染楼主体工程","2020-11-01","东源县卫健局","东源县政府","医疗卫生项目","省重点项目"]
[37,"东源县滨江新城污水处理厂及配套管网一期工程","日处理总规模6.5万吨，其中一期日处理规模2万吨，二期日处理规模4.5万吨，近期配套管网9166米。","2021-2022",15437,7905,7532,"土建施工","2021-01-01","东源县住房和城乡建设局","东源县政府","生态环保工程","市重点项目"]
[38,"东源县新材料产业基础设施建设项目","总用地面积1500亩，建设内容包括征地拆迁、土地平整、市政道路、供水供电设施、燃气管网、排水渠、污水处理厂、通信管网及其他配套设施等。","2021-2023",61000,40000,18000,"土建施工","2020-11-01","东源县融湾工业投资有限公司","东源县政府","产业发展平台项目","市重点项目"]
[39,"东源县硅产业集聚区（二期）基础设施建设项目","项目总面积约1483.9亩，建设内容含道路工程（含广告牌、路边停车位建设）、土地征收及房屋拆迁工程、土石方工程等。","2021-2023",33937,25000,6500,"市政道路建设及场地土石方平整","2021-02-01","东源县融湾工业投资有限公司","东源县政府","产业发展平台项目","市重点项目"]
[40,"东源县力升总部经济项目","占地面积21万平方米, 建筑面积28万平方米，主要建设集团总部大楼、研发大楼、仓库、物流中心、生产车间、员工宿舍、食堂等。","2019-2024",100000,40000,10000,"生产车间、仓库主体施工","2019-04-01","力升树灯（河源)有限公司","东源县政府","服务业项目","市重点项目"]
[41,"东源县联天科技钢结构构建生产项目","占地面积14.06万平方米，总建筑面积7.76万平方米，新建钢结构厂房、办公室、宿舍，年产钢结构构件20万吨。","2020-2023",100000,35000,15000,"土建工程","2020年5月","广东联天科技有限公司","东源县政府","工业项目","市重点项目"]
[42,"东源县拓万科技铝制品生产项目","占地面积2.4万平方米，总建筑面积4.6万平方米，新建2栋标准厂房、1栋生产研发大楼、1栋钢架厂房、1栋宿舍，主要生产铝合金汽车零配件、LED显示屏、家电配件等，预计年产1000吨铝制品。","2021-2024",30000,6000,10000,"厂房、研发大楼、宿舍","2021年5月","广东拓万科技有限公司","东源县政府","工业项目","市重点项目"]
[43,"东源县众美运动设备生产项目","总建筑面积3.6万平方米，新建1栋厂房、1栋办公楼、1栋综合楼，主要生产智能电动跑步机、智能划船机等健身产品。","2021-2023",20000,7000,8000,"厂房、办公楼、综合楼、值班室","2021年5月","河源众美健康科技有限公司","东源县政府","工业项目","市重点项目"]
[44,"东源县凯利华电子生产项目","占地面积2.2万平方米，总建筑面积5.4万平方米，新建2栋厂房、1栋办公楼、2栋宿舍，主要生产网通产品、机顶盒、安防产品等。","2021-2022",15000,7000,8000,"土建施工","2021年6月","广东省高峰科技有限公司","东源县政府","工业项目","市重点项目"]
[45,"东源县必盛达注塑机生产项目","占地面积1.6万平方米，总建筑面积3.3万平方米，新建1栋组装车间、1栋研发楼、2栋生产楼，年产1800台注塑机。","2021-2023",16000,1000,8000,"土建施工","2021年11月","河源必盛达科技有限公司","东源县政府","工业项目","市重点项目"]
[46,"东源县万利科技电子产品生产项目","占地面积2.5万平方米，新建3栋厂房、1栋综合办公楼及1栋宿舍楼等，主要生产手机背板配件、光学屏幕等电子产品。","2020-2023",35000,14500,9000,"土建施工","2020-08-01","河源市万利科技有限公司","东源县政府","工业项目","市重点项目"]
[47,"东源县开蒙医疗产品生产项目","占地面积2.1万平方米，建筑面积4.4万平方米，新建4栋厂房、1栋宿舍楼、1间配电房，主要生产呼吸机、血压计、血氧仪、额温计、衡器及上游产业链相关医疗产品。","2021-2023",25000,4000,9000,"土建施工","2021-07-01","河源开蒙医疗科技有限公司","东源县政府","工业项目","市重点项目"]
[48,"河源绿然灯塔农产品物流园项目","规划占地面积15.5万平方米，计划分两期建设，第一期建设现货交易区、远程远期交易区、农业互联网大厦、酒店公寓、职工公寓；第二期建设1万吨冷库、1万吨干货库及经营者公寓，增建保税物流中心（B型）。","2018-2023",60620,35000,15000,"建设保税物流中心（B型）及经营者公寓","2018-06-01","广东绿然灯塔农产品物流有限公司","东源县政府","服务业项目","市重点项目"]
[49,"东源县第四小学","占地面积2万平方米，总建筑面积2.2万平方米，新建1栋综合楼、2栋教学楼、教师宿舍、食堂等，建设规模42个教学班，办学规模约2000人。","2021-2022",13464,1464,12000,"土建施工","2021-10-01","东源县公用事业投资有限公司","东源县政府","教育项目","市重点项目"]
[50,"东源县精神专科医院","总用地面积4.4万平方米，建筑占地面积1.25万平方米，总建筑面积3.22万平方米，主要建设急诊、门诊部、住院部、医技科室等。","2020-2022",25162,20162,5000,"完成建筑主体及设施设备采购","2020-11-01","东源县卫生健康局","东源县政府","医疗卫生项目","市重点项目"]
[51,"东源县粮食储备直属仓库迁建项目","项目总用地面积2.6万平方米，总建筑面积2万平方米，主要建设2.5万吨粮食平房仓库、应急大米加工厂，辅助生产设施、行政管理及生活服务设施、室外工程。","2021-2023",12000,2000,8000,"土建施工","2021-11-01","东源县粮食和物资储备有限责任公司","东源县政府","居民保障项目","市重点项目"]
[null,"（二）计划新开工项目：10项",null,null,{"$f":"SUM(E72:E81)","v":447092},{"$f":"SUM(F72:F81)","v":0},{"$f":"SUM(G72:G81)","v":146000}]
[52,"东源县综合资源利用中心","总用地面积6.3万平方米，总建筑面积1.86万平方米，日处理垃圾规模600吨。","2022-2023",34720,0,15000,"土建施工","2022-04-01","东源深能环保有限公司","东源县政府","生态环保工程","省重点项目"]
[53,"广东晟源永磁材料有限责任公司8000t/a高性能钕铁硼永磁材料项目","占地面积8.26万平方米，总建筑面4.77万平方米,新建生产车间、辅助车间及配套办公生活设施等，年产8000t/a高性能钕铁硼永磁材料。","2022-2024",125204,0,30000,"一期土建施工和主体设备安装","2022-03-01","广东晟源永磁材料有限责任公司","东源县政府","工业项目","省重点项目"]
[54,"东源县晶金电子生产项目","占地面积1.3万平方米，建筑面积2.2万平方米，新建生产车间、办公楼、宿舍楼，主要生产PCB行业自动化设备（熔合机系列产品、冲孔机系列产品、压机系列产品等）。","2022-2023",12000,0,8000,"土建施工","2022-05-01","广东晶金智能科技有限公司","东源县政府","工业项目","市重点项目"]
[55,"东源县柏安汽车内饰材料生产项目","占地面积1万平方米，总建设面积2万平方米，新建3栋厂房、1栋研发楼、1栋宿舍，主要生产汽车零部件及内饰、汽车发动机部件隔垫和汽车隔音材料等。","2022-2023",12000,0,8000,"土建施工","2022-05-01","广东柏安科技有限公司","东源县政府","工业项目","市重点项目"]
[56,"东源县三扬精密技术有限公司电子元件生产项目","占地面积1.6万平方米，总建筑面积4.1万平方米，新建研发中心、办公楼、厂房及宿舍等，主要生产马达精密轴芯、马达关联部品、新型打印装置及零部件等。","2022-2023",16000,0,8000,"土建施工","2022-05-01","河源三扬精密技术有限公司","东源县政府","工业项目","市重点项目"]
[57,"东源风行牧业有限公司（骆湖）现代农业生态养殖基地","一期庄岗项目建筑面积70万平方米，二期木眉项目建筑面积70万平方米，各自存栏种母猪20280头，公猪300头，保育育肥猪27万头。","2022-2025",176168,0,30000,"土建施工","2022-04-01","东源风行牧业有限公司","东源县政府","农林牧渔项目","省重点项目"]
[58,"东源县太二农业科技有限公司加州鲈鱼养殖项目","占地面积8.5万平方米，建筑面积12万平方米，新建科技孵化基地、工厂化养殖系统、仓储加工及养殖厂房，主要建设工厂化养殖加州鲈鱼。","2022-2023",30000,0,15000,"土建施工","2022-03-01","河源太二农业科技有限公司","东源县政府","农林牧渔项目","市重点项目"]
[59,"温氏漳溪高效生态养殖基地","拟租地约677亩，总建筑面积2.68万平方米，主要建设生活办公区、入场消毒隔离区、生产区、孵化区、环保区五大功能区，新建鸡舍19栋、孵化车间1栋、宿舍3栋、办公室1栋及附属配套设施。","2022-2023",12000,0,10000,"土建施工","2022-03-01","广东温氏南方家禽育种有限公司东源分公司","东源县政府","农林牧渔项目","市重点项目"]
[60,"东源县农村集中供水全覆盖建设项目","10个乡镇32个行政村的水厂及管网铺设",2022,12000,0,12000,"10个乡镇32个行政村的水厂及管网铺设","2022-01-01","东源县水利工程建设服务中心","东源县政府","供水工程","市重点项目"]
[61,"华南师范大学东源附属小学（东源县第六小学）","占地面积2.75万平方米，总建筑面积1.77万平方米，主要建设教学楼、行政楼、风雨操场等，拟设小学部36班。","2022-2023",17000,0,10000,"土建施工","2022-04-01","河源市越时顺诚房地产开发有限公司","东源县政府","教育项目","市重点项目"]
["四","和平县（15项）",null,null,{"$f":"E83+E97","v":1085985},267680,272000]
[null,"（一）续建项目：13项",null,null,{"$f":"SUM(E84:E96)","v":944220},267680,232000]
[62,"和平县高岭土高新材料生产基地","占地面积75万平方米，新建办公楼、研发中心、堆场、厂房、生活区等，年产100万吨的中高端陶瓷产品及制品。","2021-2024",300000,5000,30000,"厂房、办公楼土建施工","2021-08-01","和平县大坝金龙高岭土高新材料有限公司","和平县政府","工业项目","省重点项目"]
[63,"和平县朋友高科环保涂料生产项目","用地面积5.2万平方米，建筑面积11.5万平方米，建设办公楼、宿舍、厂房及配套产品检验检测中心等，年产环保涂料50万桶。","2021-2024",100000,20300,30000,"厂房、办公楼土建施工","2021-01-01","广东朋友高科环保材料有限公司","和平县政府","工业项目","省重点项目"]
[64,"和平县瑞祥科技有限公司废弃塑料回收再利用项目","占地面积3.18万平方米，新建生产车间、综合楼及设备购置等，设计年产编织袋及其他塑料制品3万吨。","2021-2023",50000,9000,20000,"厂房、办公楼土建施工","2021-09-01","和平县瑞祥科技有限公司","和平县政府","工业项目","省重点项目"]
[65,"河源栖岭农牧科技有限公司现代农业建设项目","占地面积1.7万平方米，一期主要建设办公楼、厂房、高级人才用房等，二期主要建设标准化腐竹车间、豆渣生物处理车间、黄豆储存仓、污水处理中心等。","2020-2023",50000,23680,16000,"厂房、办公楼土建施工","2020-10-01","河源栖岭农牧科技有限公司","和平县政府","农林牧渔项目","省重点项目"]
[66,"和平县高铁新区两路一广场","建设高铁新区内市政道路和高铁东站，其中站前大道长1.02公里，纬二路、和优路长1.2公里；高铁东站面积1万平方米；站前广场分为北停车场区和中央景观广场区，总面积约6万平方米。","2021-2022",32700,20700,12000,"建设道路工程、涵洞工程、给排水工程、绿化亮化工程","2021-01-01","和平县农村公路服务中心","和平县政府","市政基础设施工程","市重点项目"]
[67,"和平县大环城公路二期工程","全长7.7公里，主要建设内容为路基、路面工程，涵洞及其他附属工程。","2020-2022",41000,35000,6000,"路基、路面工程，涵洞及其他附属工程。","2020-05-01","和平县交通运输局","和平县政府","交通运输工程","市重点项目"]
[68,"和平县福和产业转移园北扩工程","总规划面积3.16平方公里，2021年首期推进1.2平方公里。开展征地拆迁、土地平整、市政道路及绿化亮化等配套工程建设。","2021-2023",60000,25000,25000,"开展征地拆迁、土地平整及下水道管网建设","2021-02-12","和平县工业园管委会","和平县政府","产业发展平台项目","市重点项目"]
[69,"南和产业转移基地","占地面积约6万平方米，建筑面积11.2万平方米，新建总部大厦、人才公寓、生产车间、仓库楼、产品展示楼、产品研发中心。","2019-2023",100000,60000,20000,"土建施工","2019-03-01","和平县华毅塑胶制品有限公司","和平县政府","工业项目","市重点项目"]
[70,"和平县三电电子产品生产项目","占地面积1万平方米，建筑面积1.3万平方米，新建2栋厂房、1栋宿舍楼等，设计年产USB连接器500万件。","2020-2023",30000,12000,13000,"土建施工","2020-12-01","河源市三电电子有限公司","和平县政府","工业项目","市重点项目"]
[71,"和平县朗轩眼镜生产项目","占地面积0.8万平方米，建筑面积1.5万平方米，新建生产车间、办公楼、宿舍等，设计年生产眼镜100万副。","2021-2023",20000,10000,8000,"土建施工","2021-05-01","和平县朗轩眼镜有限公司","和平县政府","工业项目","市重点项目"]
[72,"和平县汉粮农牧有限公司生猪养殖项目","占地面积2万平方米，建设内容包括猪舍、办公用房及其他配套设施。","2020-2023",31000,12000,12000,"土建施工","2020-12-01","和平县汉粮农牧有限公司","和平县政府","农林牧渔项目","市重点项目"]
[73,"和平县乐和有限公司彭寨生猪养殖项目","占地4635亩，包括彭寨水口村和彭寨梅园村两地块，主要建设猪舍、员工宿舍、饲料仓库、污水处理站等。","2021-2023",90000,20000,25000,"土建施工","2021-01-01","河源市乐和养殖有限公司","和平县政府","农林牧渔项目","市重点项目"]
[74,"和平县振安实验学校","用地面积9.8万平方米，建筑面积1.3万平方米，新建教学楼、综合楼、体育馆、图书馆、饭堂、学生宿舍楼、办公楼及相关配套设施，开设小学54个班、初中42个班、高中30个班，容纳在校学生5100余人。","2020-2023",39520,15000,15000,"土建施工","2021-02-01","和平县振鸿投资有限公司","和平县政府","教育项目","市重点项目"]
[null,"（二）计划新开工项目：2项",null,null,{"$f":"SUM(E98:E99)","v":141765},0,40000]
[75,"和平县钟表科创城","占地面积8.3万平方米，建筑面积20万平方米，新建研发创意中心、钟表孵化园、钟表检测中心、钟表展示中心和高级智慧公寓等。","2022-2025",100000,0,20000,"土建施工","2022-08-01","和平县工业商务和信息化局","和平县政府","产业发展平台项目","省重点项目"]
[76,"和平县全域自然村集中供水工程","和平县辖区内17个镇，新建、维修水陂及蓄水池、管网、机井等基础设施建设。","2022-2023",41765,0,20000,"新建、维修水陂及蓄水池、管网、机井等基础设施建设","2022-01-01","和平县水务局","和平县政府","供水工程","省重点项目"]
["五","龙川县（25项）",null,null,{"$f":"E101+E116","v":1217598},509104,381800]
[null,"（一）续建项目：14项",null,null,{"$f":"SUM(E102:E115)","v":956162},509104,233300]
[77,"国道G205线龙川县城段改线工程","全长24.1公里，按一级公路标准建设，设计速度80公里/小时，路基宽度32米，双向六车道，水泥混凝土路面。","2019-2023",133870,90000,25000,"路基、桥涵、路面施工","2019-09-01","龙川县公路局","龙川县政府","交通运输工程","省重点项目"]
[78,"省道S238线四都至贝岭段二级公路改建工程","全长55.92公里，采用二级公路标准建设。","2020-2022",44396,28396,16000,"路基路面、涵洞施工，完成郑贝大桥主体工程","2020-11-01","龙川县地方公路管理站","龙川县政府","交通运输工程","省重点项目"]
[79,"龙川高铁新城综合交通枢纽及配套工程","总用地面积13.4万平方米，总建筑面积5.8万平方米，主要建设龙川西站综合客运枢纽、站前东、西广场以及横二路北侧配套附属用房等。","2020-2022",64647,34647,30000,"西广场及附属用房建设","2020-10-01","龙川县交通建设投资有限公司","龙川县政府","交通运输工程","省重点项目"]
[80,"科逸家居设备（龙川）有限公司整体浴室生产基地","占地面积178.5亩，主要建设厂房、仓库、宿舍、办公楼、综合楼及附属工程等，年设计整体浴室产能10万套。","2019-2023",100000,70000,25000,"土建施工、设备购置","2019-11-01","科逸家居设备（龙川）有限公司","龙川县政府","工业项目","省重点项目"]
[81,"龙川县人民医院新院","总规划用地面积25.3万平方米，总建筑面积19.5万平方米,主要建设综合大楼、医技大楼、住院大楼、感染病房楼、后勤保障楼、宿舍公寓、行政管理楼及配套附属工程。","2019-2023",100000,75000,20000,"室内外装修、设备购置安装","2019-07-01","龙川县人民医院","龙川县政府","医疗卫生项目","省重点项目"]
[82,"广东（龙川）环霍山生态旅游度假区（首期）","首期（南北门服务区）控规占用面积约2300亩，规划建设游客服务中心、生态休闲、旅游酒店、会议中心、演艺中心、配套商业街、霍仙路、旅游公路、内环路及配套教育基础设施等。","2015-2025",150000,75000,25000,"建设旅游酒店、商业街及写生基地等","2015-09-01","广东霍仙峰旅游景区股份有限公司","龙川县政府","服务业项目","省重点项目"]
[83,"国道G236线龙川县丰稔至县城段改建工程","北起于龙川县丰稔镇莲东，终点位于马喉莲与G205国道相接，路线全长13.2公里。","2021-2023",27618,2000,15000,"路基、桥涵","2021-09-01","龙川县公路局","龙川县政府","交通运输工程","市重点项目"]
[84,"河惠莞高速公路麻布岗互通出口至兴宁市罗浮连接线公路工程（龙川段）","项目起点位于河惠莞高速公路麻布岗互通出口处，终点止于赤化村哪扒寨处，全长4.94公里，按二级公路标准建设，采用设计速度60公里/时，路基宽度8.5米，行车道宽7.0米。","2021-2023",9873,2000,6000,"完成路基4.94公里，桥涵50%","2021-10-01","龙川县地方公路管理站","龙川县政府","交通运输工程","市重点项目"]
[85,"省道S238线河惠莞高速公路黄鹤出口至紫市段二级公路工程","项目起于黄布镇欧江村，终点止于紫市镇新北村，与县道 X151线相交，全长 8.65公里，拟按二级公路标准建设，路面宽7米，路基宽8.5米。","2021-2022",7197,1897,5300,"完成项目主体工程建设","2021-07-01","龙川县地方公路管理站","龙川县政府","交通运输工程","市重点项目"]
[86,"龙川县幸福新城基础设施及配套工程建设项目","主要建设幸福新城共18条主次干道及支路，包括道路、交通、桥涵、给排水、电气、绿化景观等工程。","2021-2025",173997,34000,20000,"建设幸福大道及幸福路、涉铁道路","2021-01-01","龙川县城市管理和综合执法局","龙川县政府","市政基础设施工程","市重点项目"]
[87,"广东名格光电科技有限公司偏光片及功能薄膜生产项目","用地总面积54亩，建设3栋厂房、1栋办公楼、1栋宿舍楼（含食堂）、1个仓库及其他配套设施及绿化，年产偏光片200万平方米。","2018-2022",100000,78000,22000,"全面完成工程建设，竣工投产","2018-03-01","广东名格光电科技有限公司","龙川县政府","工业项目","市重点项目"]
[88,"龙川县晶索工业润滑油生产项目","占地面积1.5万平方米，新建厂房2栋、综合楼1栋、仓库1栋，年产工业润滑油25000桶。","2021-2022",15000,5000,10000,"土建施工","2021-09-01","广东晶索新材料科技有限公司","龙川县政府","工业项目","市重点项目"]
[89,"龙川县第三人民医院住院综合楼","占地面积6042平方米，建筑面积24042平方米，新建1栋住院综合楼及设备购置。","2021-2023",16664,10664,6000,"装修工程、设备购置","2021-03-01","龙川县第三人民医院","龙川县政府","医疗卫生项目","市重点项目"]
[90,"龙川县广电高清双向网络工程","包括数据中心机房系统工程，镇级机房，互动业务支撑系统配置，宽带数据城域网配置，光传输接入系统配置，有线电视光纤到户(FTTH)双向网络建设等。","2021-2023",12900,2500,8000,"完成乡镇广电站前端机房改造，重新更换铺设相关乡镇有线广播电视光缆网络线路","2021-05-01","龙川县融媒体中心","龙川县政府","信息基础设施工程","市重点项目"]
[null,"（二）计划新开工项目：11项",null,null,{"$f":"SUM(E117:E127)","v":261436},0,148500]
[91,"龙川县新城区供水公司水厂工程一期项目","一期供水规模10万吨/天，主要新建水厂一座，铺设水源输水管920米，输水主管19.6公里，输水主干管16公里，配水管27.2公里。","2022-2024",26905,0,15000,"取水泵站、净水厂土建及部分管网工程建设","2022-03-01","龙川县新城区供水公司","龙川县政府","供水工程","省重点项目"]
[92,"龙川县宝利光电科技有限公司光电产品项目","规划用地23亩，计划新建厂房、办公楼、宿舍及绿化等，主要生产偏光片产品，预计年产200万平方米偏光片。","2022-2023",50000,0,30000,"计划建设厂房、办公楼、宿舍等工程","2022-02-01","河源宝利光电科技有限公司","龙川县政府","工业项目","省重点项目"]
[93,"龙川县两渡河流域综合整治工程","新建DN300～DN800污水管、总长约34.34千米，污水连接支管管径DN150～DN200、总长约9.02千米，河道清淤约3.98万立方米，生态浮岛1647平方米，生态种植（挺水、沉水绿植）约3.3万平方米。","2022-2024",16278,0,6000,"完成两渡河两岸截污、河道清淤、沿河现状管道清淤、河道生态种植等","2022-01-01","龙川县环境技术中心","龙川县政府","生态环保工程","市重点项目"]
[94,"龙川县能源生态园","总用地面积约78亩，总建筑面积1.7万平方米，主要建设主厂房、主厂房渣池及汽机间、综合楼、污水处理站、综合水泵房、冷却塔等。年设计生活垃圾总处理规模为900t/d，一期为600t/d，预留二期300t/d，同时项目本期协同处置餐厨垃圾50t/d ，预留50t/d远期扩建空间。","2022-2023",39332,0,20000,"主体工程施工","2022-06-01","龙川县城市管理和综合执法局","龙川县政府","生态环保工程","市重点项目"]
[95,"龙川县中存钢结构预制构件生产项目（一期）","用地面积63亩，新建厂房、宿舍等，年产钢结构预制构件6万吨。","2022-2023",40000,0,20000,"计划建设厂房、办公楼、宿舍","2022-03-01","江西中存建筑工程有限公司","龙川县政府","工业项目","市重点项目"]
[96,"龙川县凯昌高端品牌整装预制组件生产项目","项目用地35.35亩，计划建设厂房、办公楼、宿舍等配套设施，主要生产商铺整装（预制组件）等高端家具制品。","2022-2023",20000,0,10000,"计划建设厂房、办公楼、宿舍","2022-03-01","河源市凯昌工程建设有限公司","龙川县政府","工业项目","市重点项目"]
[97,"龙川县龙母镇公寨矿泉水开发项目","规划用地面积53亩，建筑占地面积1万平方米，建筑面积1.5万平方，新建1栋办公楼、 1栋生产车间、1栋仓库、1栋宿舍。","2022-2023",30000,0,20000,"土建施工","2022-04-02","河源市鑫隆工贸有限公司","龙川县政府","工业项目","市重点项目"]
[98,"龙川县精神卫生中心","规划用地面积2万平方米，总建筑面积3万平方米；拟新建1栋住院大楼、1栋门诊楼、1栋一层食堂、1栋二层后勤楼。","2022-2023",16264,0,10000,"主体工程施工","2022-02-01","龙川县慢性病防治院","龙川县政府","医疗卫生项目","市重点项目"]
[99,"龙川县“三馆”（文化馆、图书馆、博物馆）升级改造项目","总改造面积2.8万平方米，主要内容包括“三馆”室内二次装修、“三馆”消防系统、博物馆专项安防监控系统、博物馆陈列布展设计与制作等。","2022-2023",11110,0,6000,"升级改造工程施工","2022-01-01","龙川县文化广电旅游体育局","龙川县政府","文化体育项目","市重点项目"]
[100,"龙川县佗城镇圩镇村升级改造工程示范区建设项目","建设内容主要包括：一是佗城镇新街、百岁街、中山街、环城路沿线建筑外立面改造；二是北门铭佗、龙川考棚、忆影成儒、勒马驻邑、怀勤拾锦、西门码头等景点改造提升；三是游客服务中心（含广场）、主干道路面沥青铺设等。",2022,5047,0,5000,"全面完成工程建设","2022-01-01","佗城镇政府","龙川县政府","居民保障项目","市重点项目"]
[101,"龙川县黎咀镇省级非物质文化遗产手擎木偶戏产业发展中心","总占地面积9050平方米，新建1栋木偶戏剧院、1栋木偶戏传承中心、木偶制作基地、文化长廊、广场等。",2022,6500,0,6500,"土建施工","2022-01-01","黎咀镇政府","龙川县政府","文化体育项目","市重点项目"]
["六","紫金县（22项）",null,null,{"$f":"E129+E144","v":1735702},268000,283000]
[null,"（一）续建项目：14项",null,null,{"$f":"SUM(E130:E143)","v":1082575},268000,191000]
[102,"紫城工业园二期基础设施建设项目","总占地面积641.3公顷，建设内容包括土方工程、道路工程、给排水工程、照明工程、电力电信工程、绿化工程等市政基础设施。","2021-2025",306653,40000,30000,"开展征地拆迁、场地平整及建设市政道路、排水排污管网、绿化、边坡治理等","2021-01-01","紫城工业园开发有限公司","紫金县政府","产业发展平台项目","省重点项目"]
[103,"紫金县蓝塘产业新城一期基础设施建设项目","用地总面积668公顷，建设内容包括规划用地范围内的征地拆迁、场地平整、市政道路、市政管网、道路、绿化、照明、通信等市政基础设施。","2020-2025",238258,40000,30000,"开展征地拆迁、场地平整及建设市政道路、管网工程等","2020-08-01","紫金县蓝塘产业新城开发有限公司","紫金县政府","产业发展平台项目","省重点项目"]
[104,"紫金县佑文中学","规划面积27万平方米，建筑面积15万平方米；新建教学楼、综合楼、运动场、体育馆、学生宿舍、教师周转房、学生食堂。","2019-2022",65000,45000,20000,"完成土建及配套附属工程并交付使用","2019-05-01","紫金县佑文教育投资发展有限公司","紫金县政府","教育项目","省重点项目"]
[105,"省道S120线紫金好义杉树坳至林田冷水坑段改建工程","路线全长59.706，二级公路","2021-2025",79223,10000,10000,"开展桥涵、路基等工程建设","2021-05-01","紫金县公路事务中心","紫金县政府","交通运输工程","市重点项目"]
[106,"紫金县蓝塘产业新城南环路","路线全长15公里，采用城市主干道标准建设，设计速度60公里/小时。","2021-2024",45717,3000,10000,"完成南环路其中100米路面宽道路建设","2021-07-01","紫金县公路事务中心","紫金县政府","市政基础设施工程","市重点项目"]
[107,"紫金县紫城工业园首期公共服务区","用地面积26万平方米，总建筑面积35.84万平方米，主要开发建设园区内企业服务中心、工业厂房、宿舍公寓、商铺、写字楼、酒店等。","2020-2024",80000,48000,20000,"建设厂房、宿舍楼、写字楼、酒店及市政基础设施","2020-02-01","紫金县龙和汇联合投资发展有限公司","紫金县政府","服务业项目","市重点项目"]
[108,"紫金县成亿科技有限公司智能家电生产项目","总占地面积2.6万平方米，总建筑面积5.2万平方米；建设3栋厂房、1栋办公楼。主要生产风扇、通风设备、空气调节器、空气净化杀菌计等智能家电。","2021-2022",22000,10000,12000,"完成厂房、办公楼等","2021-05-01","广东成亿科技有限公司","紫金县政府","工业项目","市重点项目"]
[109,"紫金县正合智能科技有限公司自动化设备和智能装备生产项目","总占地面积1.65万平方米，总建筑面积3.3万平方米；建设3栋厂房、1栋办公楼及附属工程，主要生产电加热管、自动绕丝机等全自动化设备和烤箱管、洗衣机管等智能装备。","2021-2022",15000,3000,12000,"完成厂房、办公楼等","2021-08-01","广东正合智能科技有限公司","紫金县政府","工业项目","市重点项目"]
[110,"紫金县裕霸食品加工项目","占地面积2.6万平方米，总建筑面积5.55万平方米，建设厂房、办公区、仓库、宿舍等，主要生产米粉、糕点糖果、各式饼类。","2021-2024",25000,1000,10000,"厂房主体工程施工","2021-10-01","河源裕霸食品有限公司","紫金县政府","工业项目","市重点项目"]
[111,"紫金县蒋氏食品有限公司粮食加工项目","总占地面积2万平方米，总建筑面积3万平方米；主要建设厂房、宿舍、研发实验楼、办公楼等，年产面制品5000吨、斋制品2000吨、豆制品4000吨。","2021-2023",20000,2000,10000,"厂房、宿舍主体建设","2021-09-01","河源蒋氏食品有限公司","紫金县政府","工业项目","市重点项目"]
[112,"紫金客茶谷","规划占地面积400万平方米，总建筑面积25万平方米，建设内容包括基础设施、茶产业园，旅游观光、体验及服务配套设施等；计划打造多彩茶园、林下茶种植、生态康养、客茶产学研及体验、客家文化风情、乡村田园综合和户外运动等综合文旅项目。","2019-2028",101610,20000,6000,"开展产业学院、休闲木屋等主体建设","2019-02-01","紫金县紫龙农业开发有限公司","紫金县政府","农林牧渔项目","市重点项目"]
[113,"紫金县瑞佳食品有限公司生态养殖基地","总规划用地面积为3045亩（其中建筑占地面积441亩平方米），总建筑面积为14.5万平方米，建设猪舍、保育舍、育肥舍、饲料车间、环保设施及配套办公用房。","2020-2023",48279,34000,8000,"建设育肥区、二期污水处理站及附属设施","2020-04-01","河源瑞佳食品有限公司","紫金县政府","农林牧渔项目","市重点项目"]
[114,"紫金县“三馆一中心”（博物馆、图书馆、文化馆和花朝戏传承发展中心）建设项目","总用地面积46694平方米，总建筑面积25646平方米，建设博物馆、图书馆、文化馆、花朝戏传承发展中心、广场、停车场、市政配套设施等。","2020-2023",25840,10000,8000,"建设博物馆、图书馆及文化馆等主体工程","2020-07-01","紫金县文化广电旅游体育局","紫金县政府","文化体育项目","市重点项目"]
[115,"紫金县粮食和救灾救援物资储备仓库","总占地面积4.9万平方米，总建筑面积1.44万平方米，建设平房仓、综合库、军供门店、应急加工厂、救灾救援物资储备仓库、消防及附属工程等。","2021-2023",9995,2000,5000,"完成场地平整，进行粮食平房仓、综合库、救灾及救援物资储备仓库等建设","2021-08-01","紫金县发展和改革局","紫金县政府","居民保障项目","市重点项目"]
[null,"（二）计划新开工项目：8项",null,null,{"$f":"SUM(E145:E152)","v":653127},0,92000]
[116,"紫金县聚飞鑫光电子产品生产基地","总用地面积30万平方米，总建筑面积约52万平方米，新建12栋厂房、2栋研发楼、8栋宿舍楼及附属工程，主要生产发光LED器件、光电器材、光学用薄膜等光电子产品。","2022-2026",200000,0,20000,"完成首期场地平整，开展厂房、宿舍等主体土建施工","2022-09-01","紫金县聚飞鑫科技有限公司","紫金县政府","工业项目","省重点项目"]
[117,"紫金县敬梓温泉康养产业小镇首期项目","首期总占地面积59.3万平方米，其中建筑占地面积约17.8万平方米，建筑面积59.4万平方米；建设内容：温泉康养酒店、温泉康养庄园、客家百艺民俗街、康养公寓、国际健康学院、南药养生论坛活动中心、南药颐养别院、静心康养庄园及配套附属工程。","2022-2025",93000,0,10000,"开展温泉康养酒店、温泉康养庄园等土建工程","2022-09-01","广东中紫康养产业有限公司","紫金县政府","服务业项目","省重点项目"]
[118,"紫金县城南新区现代服务业产业园基础设施建设项目","总占地面积581公顷；主要建设内容包括规划用地范围内的征地拆迁、场地平整、市政道路、市政管网、道路绿化、照明、通信等配套工程。","2022-2025",250000,0,20000,"开展征地拆迁、场地平整、市政管网、道路基础等设施建设","2022-06-01","紫金县住房和城乡建设局","紫金县政府","产业发展平台项目","市重点项目"]
[119,"紫金县金士领科技有限公司高分子材料氟塑料制品生产项目","总占地面积1.5万平方米，总建筑面积3.85万平方米，主要建设建筑2栋厂房、1栋宿舍及供电房等附属工程，主要生产塑料棒、塑料管、塑料板等高分子材料氟塑料制品。","2022-2025",30000,0,10000,"建设厂房、办公楼等主体工程","2022-03-01","金士领（河源）科技有限公司","紫金县政府","工业项目","市重点项目"]
[120,"紫金县勤进达实业有限公司汽车零部件生产项目","总占地面积1.7万平方米，总建筑面积4.2万平方米，主要建设3栋厂房、1栋办公楼、1栋宿舍，主要生产汽车零部件。","2022-2023",30000,0,10000,"厂房、办公楼等主体工程建设","2022-03-01","河源市勤进达实业有限公司","紫金县政府","工业项目","市重点项目"]
[121,"紫金县金石矿业有限公司马家柿高岭土开采及精加工项目","总占地面积5万平方米，总建筑面积1.5万平方米；建设厂房、仓库、办公楼、宿舍楼，年产高岭土、钾钠长石各10万吨，环保砖等附属产品130万吨。","2022-2024",30000,0,10000,"完成场地平整，开展厂房、仓库、办公楼等主体工程建设","2022-06-01","紫金县金石矿业有限公司","紫金县政府","工业项目","市重点项目"]
[122,"广东供销天业（紫金）冷链物流产业园","规划用地面积约49.5亩，规划总建筑面积2.5万平方米，设计总库容约8000吨，主要建设冷库、加工车间、综合楼、配套冷链仓储物流设施设备等。","2022-2023",12000,0,8000,"完成场地平整，开展厂房、仓库等工程建设","2022-06-01","广东天金冷链物流有限公司","紫金县政府","服务业项目","市重点项目"]
[123,"紫金县国防教育基地","总占地面积2.95万平方米，总建筑面积1.28万平方米，建设内容包括综合楼、实训楼、宿舍楼、物资楼、食堂等各1栋，射击场、训练场及附属配套设施。","2022-2023",8127,0,4000,"完成项目用地征收、场地平整，进行综合楼等主体建设","2022-06-01","紫金县住房和城乡建设局","紫金县政府","教育项目","市重点项目"]
["七","连平县（22项）",null,null,{"$f":"E154+E162","v":783539},65599,260300]
[null,"（一）续建项目：7项",null,null,{"$f":"SUM(E155:E161)","v":186429},65599,64800]
[124,"连平县县城新水厂","水厂占地面积5万平方米，总建设规模7.6万立方米/日，一期供水规模万3万立方米/日，二期供水规模4.6万立方米/日，铺设DN800mm配水管道11.9公里，建设1.7公里管线隧道。","2020-2022",20520,14020,6500,"土建施工，年底建成投产","2020-11-01","连平县城市管理和综合执法局","连平县政府","供水工程","省重点项目"]
[125,"连平县瓮潭水库忠信片区供水项目","新建一个供水规模为4.4万立方米/日水厂，输水管网工程引水管道沿着瓮潭二级电站原引水渠布置至新建水厂，总长3.23公里，配套输配水管网总长约18.83公里。","2021-2022",16379,8079,8300,"土建施工","2021-10-05","连平县水务局","连平县政府","供水工程","省重点项目"]
[126,"深圳南山（连平）产业转移园园区基础设施建设项目","建设内容包括新建市政道路8527米（新建规划纵一、二路、横一、二路），升级改造道路4136米（生态园镇村工业大道改造）；物流园道路升级工程(大广高速引线扩宽、新建新区大道）；忠定线至建儒科技段道路升级改造；征地拆迁面积约2500亩。","2021-2026",61000,2000,15000,"土建工程","2021-12-01","连平县工业园区管委会","连平县政府","产业发展平台项目","省重点项目"]
[127,"省道S341线连平隆街至新河村段改建工程","项目全长16.425公里（含支线长4公里），采用二级公路标准设计。","2021-2022",16000,10000,6000,"桥梁涵洞、挡土墙、路基路面工程等建设","2021-01-01","连平县地方公路管理局","连平县政府","交通运输工程","市重点项目"]
[128,"连平县产业新城高压线廊路及公园路建设项目","建设高压线廊路4.5公里道路、公园路3.8公里、园区700亩土地征收及道路沿线土地房屋征收。","2021-2023",27530,5500,10000,"高压线廊路、公园路道路工程及其附属设施","2021-07-01","连平县工业园管理委员会","连平县政府","市政基础设施工程","市重点项目"]
[129,"连平县维敏特科技有限公司热敏纸生产项目","占地面积75亩，新建厂房、办公楼、宿舍；年产热敏纸5万吨。","2021-2022",20000,16000,4000,"建设办公楼、宿舍楼、厂房","2021-01-01","广东维敏特科技有限公司","连平县政府","工业项目","市重点项目"]
[130,"连平东瑞农牧发展有限公司（三角镇）智能化生猪养殖项目","占地面积4.6万平方米，总建筑面积13.1万平方米，建设高层楼房猪舍、配套有机肥厂、无害化处理房、污水处理厂等，年新增出栏生猪12万头。","2021-2022",25000,10000,15000,"猪舍主体外墙施工、室内设备安装及配套附属设施建设","2021-04-01","连平东瑞农牧发展有限公司","连平县政府","农林牧渔项目","市重点项目"]
[null,"（二）计划新开工项目：15项",null,null,{"$f":"SUM(E163:E177)","v":597110},{"$f":"SUM(F163:F177)","v":0},{"$f":"SUM(G163:G177)","v":195500}]
[131,"广东（河源）万洋众创城（一期）","一期用地面积670亩，总建筑面积90万平方米，主要建设制造业集聚平台，将项目打造成集制造研发、电子商务、仓储物流、生活配套、金融服务和智能园区管理为一体的绿色智能产业园区。","2022-2025",250000,0,70000,"土建工程","2022-03-01","河源万洋众创城科技有限公司","连平县政府","产业发展平台项目","省重点项目"]
[132,"河源市灯塔盆地国家级农业产业园（连平县片）示范产业园区基础设施建设项目","连平县忠信镇农业示范产业园农业基础设施建设，农旅结合旅游设施建设，农业科教研学类设施建设。","2022-2027",70000,0,20000,"土建工程","2022-05-01","连平县农业农村局","连平县政府","产业发展平台项目","省重点项目"]
[133,"国道G105线连平县城过境段改线工程","全长7.73公里，按一级公路建设。","2022-2025",52376,0,10000,"路基、桥涵","2022-11-01","连平县公路事务中心","连平县政府","交通运输工程","省重点项目"]
[134,"连平县美嘉美科技有限公司五金配件生产项目","占地总面积2万平方米，建筑总面积2.5万平方米，新建3栋生产厂房、1栋办公楼、1栋宿舍，主要生产橱柜调整脚、家具功能配件、隔板、收纳盒等五金配件。","2022-2023",23000,0,10000,"建设厂房、办公楼、宿舍楼","2022-03-01","河源市美嘉美科技有限公司","连平县政府","工业项目","市重点项目"]
[135,"连平县光扬电子塑胶生产项目","总占地面积9424平方米，总建筑面积1.1万平方米，新建生产车间、喷涂车间、宿舍楼等，主要生产电脑塑胶件、玩具等。",2022,10000,0,10000,"土建施工","2022-02-01","光扬电子塑胶（广东）有限公司","连平县政府","工业项目","市重点项目"]
[136,"连平忠信南部片区城乡冷链物流基础设施建设项目","占地面积3万平方米，主要建设物流冷链仓储厂房、农产品集散中心，配套雨棚停车场及1:1配备充电桩。","2022-2023",8000,0,4000,"土建施工","2022-09-01","忠信镇政府","连平县政府","服务业项目","市重点项目"]
[137,"连平县文化体育服务中心","总用地面积4.68万平方米，总建筑面积3.2万平方米，主要包括文化中心、体育活动中心、科技中心、图书中心、游客接待中心及附属配套工程。","2022-2025",41486,0,10000,"土建施工","2022-08-01","连平县住房和城乡建设局","连平县政府","文化体育项目","市重点项目"]
[138,"连平县忠信片区文化旅游基础设施提升改造项目（一期）","在大湖镇大湖寨、何新屋围屋红色旅游基地、油溪镇双瀑峡粗石坑康养森林公园等现有基础设施进行提升。","2022-2023",14570,0,12000,"对何新屋、大湖寨实施文物保护，粗石坑双瀑峡景区提升，景区老旧房屋修缮等","2022-01-01","连平县文化广电旅游体育局","连平县政府","宜居城乡项目","市重点项目"]
[139,"连平县内莞镇元善镇乡村旅游公共服务保障及基础设施提升工程","主要建设各民俗文化村落的生态景观廊道及提升区域范围内整体旅游基础设施，加强沿线景观质量提升。包括显村村生态示范村、塘兴村田园风光体验园、民俗村落风貌、游客服务中心、建筑文物修缮以及大席河两岸和碧道建设等。","2022-2024",23388,0,10000,"民俗村落景观廊道、沿线景观提升改造","2022-08-01","连平县文化广电旅游体育局","连平县政府","宜居城乡项目","市重点项目"]
[140,"连平县陂头镇生态旅游示范区文化旅游基础设施建设项目","主要提升夏田古村文旅设施、建设游客服务中心及旅游风景碧道、镇区风貌提升、历史文化保护、燕岩寺至观音岩沿线8.5公里植被恢复及局部生态修复和片区整体基础设施提升等。","2022-2023",26500,0,8000,"建设综合游客服务中心及基础设施提升改造","2022-09-01","连平县文化广电旅游体育局","连平县政府","宜居城乡项目","市重点项目"]
[141,"连平县革命老区（绣缎镇、大湖镇、三角镇）乡村振兴示范区旅游配套建设项目","串联辖区内12个革命老区村落，以“红色+生态”农旅融合发展为定位，围绕融入灯塔盆地红色革命教育基地“革命、客韵、文史”红色文化旅游建设。","2022-2023",10000,0,5000,"红色文化旅游基础设施建设","2022-09-01","连平县乡村振兴局","连平县政府","宜居城乡项目","市重点项目"]
[142,"连平县油溪镇十里长街文化旅游长廊","主要开展道路整治工程、公共设施改造提升工程、景观提升工程以及旅游区配套设施建设。","2022-2025",29990,0,10000,"沿河河堤7公里改造、沿河护栏维修建设","2022-08-01","油溪镇政府","连平县政府","宜居城乡项目","市重点项目"]
[143,"连平县学前教育基础设施建设项目","建设富民新区幼儿园、城西幼儿园、东河幼儿园、陂头镇中心幼儿园、油溪镇中心幼儿园及隆街镇中心幼儿园共6所幼儿园主体、活动用房、户外活动场地、行政办公楼、绿化场地及购置设施设备。","2022-2024",16800,0,6500,"土建施工","2022-09-01","连平县教育局","连平县政府","教育项目","市重点项目"]
[144,"连平县第三小学新建项目","占地面积2.4万平方米，总建筑面积1万平方米，新建教学楼、办公楼及配套附属设施，设置42个教学班，学位1890个。","2022-2024",12000,0,5000,"土建施工","2022-08-01","连平县教育局","连平县政府","教育项目","市重点项目"]
[145,"连平县第四小学新建项目","占地面积1.35万平方米，总建筑面积0.75万平方米，新建教学楼、办公楼及配套附属设施，设置24个教学班，学位1080个。","2022-2024",9000,0,5000,"土建施工","2022-09-01","连平县教育局","连平县政府","教育项目","市重点项目"]
["八","江东新区（22项）",null,null,{"$f":"E179+E191","v":1387001},399346,322674]
[null,"（一）续建项目：8项",null,null,{"$f":"SUM(E181:E190)","v":1066407},{"$f":"SUM(F181:F190)","v":399346},183500]
[146,"河源江东新区基础设施建设项目","建设江东新区产业园区二期基础设施、紫金桥北综合开发、紫金桥头片区综合开发等3个子项目。",null,{"$f":"E181+E182+E183","v":537836},123000,53000,null,null,"江东新区管委会","江东新区管委会","市政基础设施工程","省重点项目"]
["146-1","河源江东新区产业园区（二期）基础设施建设项目","开展2.3平方公里范围内的市政道路基础设施建设","2018-2025",104251,43000,13000,"市政路基填筑、路面施工等","2018-08-01","河源市鋐晟开发投资有限公司"]
["146-2","江东新区紫金桥北综合开发（部分工程）项目","占地面积1.03平方公里，建设内容为土石方工程、新建道路，同时配套建设道路照明、绿化、综合管道等工程；东江东岸河堤工程630米；新建安置房1400套。","2019-2027",170745,35000,20000,"开展市政道路、安置房建设","2019-08-01","河源江东新区城东街道办事处"]
["146-3","河源江东新区紫金桥头片区综合开发（部分工程）项目","总面积共2.22平方公里，建设内容包括项目区域内市政基础设施配套和市政公共配套。","2019-2027",262840,45000,20000,"开展市政道路、安置房建设","2019-05-01","河源江东新区城东街道办事处"]
[147,"河源市高铁新城河源东站综合交通枢纽项目","总用地面积约68万平方米，项目分为市政基础建设与市政公共配套建设。","2019-2022",269210,219000,50000,"土建施工，2022年建成投产","2019-11-01","河源市江东新区公用事业有限公司","江东新区管委会","交通运输工程","省重点项目"]
[148,"江东新区坚宝电缆有限公司电缆生产项目","总用地面积184亩，总建筑面积24.5万平方米，新建厂房、办公楼、宿舍等，主要生产普通电缆、专用特种电缆。","2020-2023",100000,15000,20000,"土建施工","2020-09-01","河源坚宝电缆有限公司","江东新区管委会","工业项目","省重点项目"]
[149,"江东新区古竹镇紫古大道及竹港大道道路提质升级项目","升级改造紫古大道及竹港大道道路路面、 排水（雨污）、交通设施、照明、景观绿化等。","2021-2022",16046,6046,10000,"完成道路升级改造","2021-06-01","江东新区古竹镇政府","江东新区管委会","市政基础设施工程","市重点项目"]
[150,"江东新区东江东路（D路至面粉厂）","开展道路红线范围内的土石方工程、 道路工程、给排水工程、照明工程、绿化工程、交通工程。","2021-2022",9000,2500,6500,"完成建设并交付使用","2021-09-01","河源市江东新区开发投资有限公司","江东新区管委会","市政基础设施工程","市重点项目"]
[151,"江东新区东江东岸碧道工程（胜利大桥至紫金桥段）","全长2.9公里，面积为26万平方米，主要建设一条集城市广场、儿童互动智慧区、科技灯光区、共建友谊林区等于一体的线性滨水绿带。","2021-2022",17800,3800,14000,"完成建设并交付使用","2021-10-01","河源市江东新区开发投资有限公司","江东新区管委会","水利基础设施工程","市重点项目"]
[152,"江东新区产业园公共服务配套项目","总用地面积4.7万平方米，建筑占地面积1.2万平方米，总建筑面积10.4万平方米，主要建设标准厂房、管理中心及孵化园二期两栋商业服务大楼、职工公寓二期四栋公寓大楼等配套设施。","2019-2024",57482,24000,15000,"完成管理中心二期主体施工、室内外装修工程","2019-10-01","河源市鋐晟开发投资有限公司","江东新区管委会","服务业项目","市重点项目"]
[153,"河源江东新区胜利村安置小区二期建设项目","总用地面积2.79万平方米，总建筑面积11.28万平方米，规划建设8栋高层住宅楼及部分配套商业用房，安置房总套数约558套。","2021-2024",59033,6000,15000,"土建施工","2021-03-01","河源市江东新区开发投资有限公司","江东新区管委会","居民保障项目","市重点项目"]
[null,"（二）计划新开工项目：14项",null,null,{"$f":"SUM(E192:E205)","v":320594},{"$f":"SUM(F192:F205)","v":0},{"$f":"SUM(G192:G205)","v":139174}]
[154,"河源固达高端数控装备制造项目（一期）","一期用地面积4.68万平方米，主要生产固达三轴、五轴数控机床设备等。","2022-2023",31000,0,10000,"土建施工","2022-02-01","广东固达机械装备有限公司","江东新区管委会","工业项目","省重点项目"]
[155,"河源铂科高端合金软磁材料生产基地（一期）","一期用地面积4.2万平方米，建筑面积约8.4万平方米，年产金属软磁粉芯2万吨。","2022-2024",41415,0,20000,"土建施工","2022-02-01","河源市铂科新材料有限公司","江东新区管委会","工业项目","省重点项目"]
[156,"河源江东新区盛丰电子科技生产项目","规划用地面积14490平方米，总建筑面积33489平方米，主要建设工业厂房、办公楼及配套设施。","2022-2024",30000,0,10000,"厂房、办公楼土建施工等","2022-04-01","河源市盛丰电子科技有限公司","江东新区管委会","工业项目","省重点项目"]
[157,"河源江东新区熙研生物健康产业项目","规划用地面积2.7万平方米，建筑面积5.6万平方米，新建2栋研发厂房、1栋化妆品厂、1栋食品厂、1栋发酵厂、1栋宿舍等。","2022-2024",40000,0,15000,"厂房、办公楼土建施工等","2022-03-01","广东熙研生物科技有限公司","江东新区管委会","工业项目","省重点项目"]
[158,"河源江东新区珊玛新型金属建材生产项目","占地面积2.5万平方米，建筑总面积4.9万平方米，主要生产新型金属建筑装饰材料及配套产品。","2022-2024",37500,0,10000,"厂房、办公楼土建施工等","2022-04-01","河源珊玛建材科技有限公司","江东新区管委会","工业项目","省重点项目"]
[159,"江东新区震海智能制造项目","占地面积1.9万平方米，总建筑面积3.8万平方米，主要生产智能家具、钣金装备等。","2022-2023",29000,0,10000,"土建施工","2022-06-01","震海智能制造(广东)有限公司","江东新区管委会","工业项目","市重点项目"]
[160,"河源永柏新材料项目","占地面积1万平方米，建筑面积2.5万平方米，主要生产高分子粘合材料。","2022-2023",18000,0,8000,"土建施工","2022-06-01","深圳市永柏新材料科技有限公司","江东新区管委会","工业项目","市重点项目"]
[161,"省道S230线河源市区泥坑村至前进村段（东环路）路面改造工程","道路长度约14.73公里，主要完成路面挖补、铺设沥青混凝土路面，增设非机动车道、人行道。","2022-2023",19850,0,8000,"土建施工","2022-03-01","江东新区公路事务中心","江东新区管委会","市政基础设施工程","市重点项目"]
[162,"江东新区智慧交通暨红绿灯电子警察新建项目","新建智能应用平台系统、原有路口交通信号灯系统升级改造、新建交通信号灯、电子警察等系统。",2022,6482,0,6482,"智慧交通暨红绿灯电子警察系统建设","2022-01-01","江东新区自然资源和城乡建设局","江东新区管委会","信息基础设施工程","市重点项目"]
[163,"河源生态环保城市会客厅","用地面积8888平方米，建筑面积6980平方米，馆内设有序厅、绿水青山馆、饮水思源、环保之路、生态典范、生态新城和幸福河源等7个板块，同时设置了多功能厅、碳排放交易中心、管理办公室、助农直播和配电房等。",2022,7692,0,7692,"土建施工","2022-01-01","河源市江东新区鑫晟投资有限公司","江东新区管委会","文化体育项目","市重点项目"]
[164,"华南师范大学附属河源江东星河学校","规划用地面积6万平方米，计划建设4栋教学楼、1栋行政楼、1栋教师宿舍楼、1栋学生宿舍楼、1栋食堂、1座风雨操场（体育馆）、室外运动场及停车场等，拟设小学部60班、初中部30班。","2022-2023",30000,0,15000,"学校主体建筑施工","2022-03-01","河源星置城市建设有限公司","江东新区管委会","教育项目","市重点项目"]
[165,"江东新区凤凰山学校","规划总用地面积4.6万平方米，总建筑面积4.8万平方米，新建行政楼、报告厅、宿舍楼、体育馆及食堂等，拟设小学部42班、初中部18班。","2022-2023",13400,0,8000,"土建施工","2022-03-01","河源市碧桂园置业有限公司","江东新区管委会","教育项目","市重点项目"]
[166,"江东新区临江中心幼儿园迁建项目","规划用地面积8052平方米，总建筑面积9850平方米，建设幼儿园校舍、室外活动场地及附属设施等，拟设21个班，幼儿人数为735人。","2022-2023",6070,0,5000,"土建施工","2022-05-01","河源市江东新区鑫晟投资有限公司","江东新区管委会","教育项目","市重点项目"]
[167,"江东新区应急救灾物资储备库","用地面积8002平方米，建筑占地面积1830平方米，总建筑面积19887平方米，拟建1栋救灾物资库、1栋综合楼（含应急救援、救灾体能技能培训中心及辅助用房、会议中心、宿舍等）及附属工程。","2022-2023",10185,0,6000,"土建施工","2022-03-01","河源市江东新区鑫晟投资有限公司","江东新区管委会","居民保障项目","市重点项目"]
["九","市高新区（17项）",null,null,{"$f":"E207+E222","v":1592188},244000,303174]
[null,"（一）续建项目：14项",null,null,{"$f":"SUM(E208:E221)","v":864084},244000,258174]
[168,"今麦郎饮品河源生产基地","占地面积9.23万平方米，建筑面积11.1万平方米，主要生产果汁、茶饮料、软化纯净水等。","2021-2022",71086,48000,23086,"厂房装修及设备安装","2021-03-01","今麦郎饮品（河源）有限公司","市高新区管委会","工业项目","省重点项目"]
[169,"市高新区金三维模具生产基地","占地面积4.6万平方米，建筑面积约9万平方米，新建4栋厂房、1栋研发大楼、1栋宿舍等，主要生产精密模具和塑胶制品。","2021-2023",50000,20000,15000,"厂房、宿舍主体建设","2021-05-01","河源金三维智造有限公司","市高新区管委会","工业项目","省重点项目"]
[170,"碧优选河源包装饮用天然水生产基地","占地面积6.3万平方米，建筑面积4.17万平方米，新建钢结构厂房、辅助用房等六栋建筑，年产71万吨饮用水。","2021-2023",110000,25000,30000,"土建施工、装修工程","2021-06-01","河源市碧优选饮用水有限公司","市高新区管委会","工业项目","省重点项目"]
[171,"市高新区尚雷仕智能SPA无边际泳池及亚克力新型材料制造基地","占地面积6.93万平方米，建筑面积14.4万平方米，新建1栋智能制造工厂、1栋研发中心、1栋宿舍等。","2021-2023",100000,13000,25000,"土建施工","2021-08-01","广东尚雷仕智能健康科技有限公司","市高新区管委会","工业项目","省重点项目"]
[172,"市高新区欣南锂电池生产基地","占地面积4.67万平方米，建筑面积9.96万平方米，新建4栋厂房，建设若干条锂电池生产线。","2021-2023",60000,17000,18000,"土建施工","2021-06-01","河源市欣南通讯设备有限公司","市高新区管委会","工业项目","省重点项目"]
[173,"卓翼科技河源生产基地（一期）","总建筑面积10.88万平米，建设2栋厂房、1栋办公楼及1栋宿舍，建设若干条SMT产线及智能终端组装线，年产7000万台手机、路由器等智能产品。","2021-2023",100000,20000,25000,"装修工程及设备安装","2021-08-01","卓翼科技（河源）有限公司","市高新区管委会","工业项目","省重点项目"]
[174,"乔丰科技（河源） 生产基地","总建筑面积约22万平方米，主要建设2栋厂房、2栋宿舍及设备购置，主要生产汽车内饰配件等，预计年产汽车导航影音中央控制面板700万套。","2021-2024",100000,2000,20000,"厂房、宿舍楼土建施工","2021-12-01","乔丰科技实业（河源）有限公司","市高新区管委会","工业项目","省重点项目"]
[175,"市高新区科技五路、高新七路及深河A区市政基础设施提升工程","建设科技五路（铁路以西至205国道）升级改造、高新七路及深河A区（洪洞河景观提升和中兴大道）基础设施完善、明珠工业园片区污水管道等。","2021-2023",15910,4000,5000,"市政道路升级改造","2021-06-01","河源市润业投资有限公司","市高新区管委会","市政基础设施工程","市重点项目"]
[176,"市高新区深河A区统建厂房及东江干流东洲坝段湿地水生态工程","项目包含两部分工程，一是深河A区统建厂房工程，占地面积6.1万平方米，总建筑面积12.2万平方米，新建研发中心、孵化中心、2栋厂房及配套设施；二是东江干流东洲坝段湿地水生态工程，主要建设河堤、护岸、河道清淤疏浚及湿地公园建设。","2020-2022",66088,50000,16088,"深河A区统建厂房竣工验收并交付使用","2020-04-01","河源市润业投资有限公司","市高新区管委会","市政基础设施工程","市重点项目"]
[177,"市高新区昌硕科技发展有限公司文具生产项目","用地面积2.4万平方米，建筑面积8万平方米，新建6栋厂房、1栋宿舍、1栋办公楼，主要生产订书机、打孔机等文具。","2021-2022",30000,17000,13000,"完成2栋厂房及1栋宿舍的建设","2021-05-01","河源昌硕科技发展有限公司","市高新区管委会","工业项目","市重点项目"]
[178,"市高新区格瑞斯智能家居五金生产基地","用地面积3万平方米，新建4栋厂房、1栋宿舍，年产阻尼抽屉2000万套、阻尼滑轨3000万套。","2021-2023",50000,10000,10000,"完成4栋厂房及1栋宿舍的建设","2021-07-01","河源市格瑞斯精密五金有限公司","市高新区管委会","工业项目","市重点项目"]
[179,"市高新区科峤自动化干燥设备生产项目","占地面积1万平方米，总建筑面积2万平方米，主要建设2栋厂房、1栋办公楼、1栋宿舍楼，主要生产自动化干燥设备、隧道式烤箱、紫外线UV干燥机、箱型烤箱等产品，年产能约300台。","2021-2023",11000,1000,8000,"土建施工","2021-12-01","科峤精密机械（河源）有限公司","市高新区管委会","工业项目","市重点项目"]
[180,"市高新区顺和实业有限公司高新工业园","总占地面积4.55万平方米，总建筑面积11万平方米，主要建设6栋仓库厂房、1栋宿舍楼，项目为众新格力物流园。","2021-2023",30000,5000,20000,"完成所有厂房和宿舍建筑及装饰工程","2021-08-01","河源顺和实业有限公司","市高新区管委会","工业项目","市重点项目"]
[181,"市高新区智能眼镜产业孵化基地","占地面积9.6万平方米，总建筑面积25.5万平方米，主要建设1栋高新技术厂房、12栋厂房、6栋宿舍楼。","2021-2023",70000,12000,30000,"厂房主体结构封顶","2021-08-01","河源市上久投资有限公司","市高新区管委会","工业项目","市重点项目"]
[null,"（二）计划新开工项目：3项",null,null,{"$f":"SUM(E223:E225)","v":728104},0,45000]
[182,"河源市水产业园（一期）项目","总用地面积约2132.4亩，建设内容为产业城A区厂房建设工程、市政道路工程、征地拆迁、土石方挖填等","2022-2025",166844,0,20000,"征地拆迁、场地平整、部分市政道路建设","2022-06-01","河源市润业投资有限公司","市高新区管委会","产业发展平台项目","省重点项目"]
[183,"农夫山泉（河源）三期项目","规划建设用地面积420亩，建设农夫山泉广东第三生产基地。","2022-2026",180000,0,10000,"土建施工","2022-10-01","农夫山泉股份有限公司","市高新区管委会","工业项目","省重点项目"]
[184,"市高新区电子信息智能制造产业基地（卓翼科技二期）","总用地面积19.7万平方米，总建筑面积51万平方米，其中生产厂房40万平方米，生活配套用房11万平方米，主要建设5栋厂房、1栋办公楼、6栋宿舍楼和2栋食堂以及配套附属设施。","2022-2025",381260,0,15000,"部分厂房建设","2022-10-01","河源市润峰电子科技有限公司","市高新区管委会","工业项目","省重点项目"]
["十","市灯塔盆地农高区（5项）",null,null,{"$f":"E227+E231","v":108587},2420,48070]
[null,"（一）续建项目：3项",null,null,{"$f":"SUM(E228:E230)","v":68277},2420,35000]
[185,"美林油茶（河源）现代产业基地","占地面积8.8万平方米，建筑面积9.5万平方米，建设综合大楼、油茶精深加工厂区、物流仓储中心、油茶博物馆、研发大楼（油茶研究院）、办公及宿舍楼。","2021-2023",30000,1320,20000,"完成油茶精深加工厂区、办公及宿舍楼","2021-12-01","广东美林农业投资发展有限公司","市灯塔盆地农高区管委会","农林牧渔项目","省重点项目"]
[186,"河源市灯塔盆地农高区供水一体化工程","新建自来水厂总规模4万吨/日，占地面积约1.2万平方米，一期供水量2万吨/日，1.55公里原水管道，配水管道111.77公里。","2021-2023",28397,100,10000,"完成对原顺天镇自来水厂收购和升级改造工程及部分管网建设","2021-12-01","灯塔盆地乡村发展有限公司","市灯塔盆地农高区管委会","供水工程","省重点项目"]
[187,"河源市灯塔盆地农业科技服务中心（农业医院）","总占地面积约2.36万平方米，建筑面积0.83万平方米，建设农业医院（包括医院大堂、植物医院、动物医院、土壤医院等）、农具展示厅及配套设施等。","2021-2023",9880,1000,5000,"完成农业科技服务中心主体工程及装修工程建设","2021-03-01","河源市灯塔盆地乡村发展有限公司","市灯塔盆地农高区管委会","服务业项目","市重点项目"]
[null,"（二）计划新开工项目：2项",null,null,{"$f":"SUM(E232:E233)","v":40310},0,13070]
[188,"河源市灯塔盆地众诚翔云农业发展有限公司肉鸽养殖基地","用地面积1000亩，主要建设14.2万平方米的鸽产业养殖区、0.8万平方米公共管理区，年产出乳鸽400万只，年可提供种鸽30万对。","2022-2023",18000,0,10000,"土地平整，市政道路和鸽产业养殖区主体建设等","2022-01-01","广东省众诚翔云农业发展有限公司","市灯塔盆地农高区管委会","农林牧渔项目","省重点项目"]
[189,"河源市灯塔盆地国家现代农业示范区污水处理厂建设项目","规划总用地面积3.4万平方米，生活污水日处理量3万吨/日，一期规模0.5万吨/日，二期规模2.5万吨/日。","2022-2025",22310,0,3070,"完成首期0.5万吨/日的污水处理设施及1.3公里雨污管道建设","2022-02-01","河源市灯塔盆地乡村发展有限公司","市灯塔盆地农高区管委会","生态环保工程","市重点项目"]
["备注：2022年投产项目的年度投资计划将根据该项目2021年实际完成投资进行适度微调。"]

{"sheet":"附件3预备项目","index":1,"n_rows":50,"n_cols":7,"rows_kept":50,"merged":[[0,0,0,1],[1,0,1,6],[2,0,3,0],[2,1,3,1],[2,2,3,2],[2,3,3,3],[2,4,3,4],[2,5,3,5],[2,6,3,6]]}
["附件3"]
["河源市2022年重点前期预备项目计划表"]
["序号","项目名称","建设内容及规模","估算总投资\n（万元）","2022年开展的主要前期工作","业主单位","责任单位"]
[]
[null,"合计：42项",null,{"$f":"D6+D25+D34","v":6465298}]
["一","基础设施工程：18项",null,{"$f":"SUM(D7:D24)","v":4234109}]
[1,"河（源）惠（州）汕（尾）高速公路河源东源义合至紫金好义段","河（源）惠（州）汕（尾）高速公路规划线位145公里，设计速度100公里/小时，双向四车道，路基宽26米，投资约232亿元。其中河源市东源义合（接长深高速）至紫金县好义（接河惠莞高速）段长约61.3公里。",1022000,"编制工可，开展规划选址和用地预审、环评等前期工作。","河源市交通运输局（暂代业主职责）","市交通运输局"]
[2,"国道G355线紫金林田至江东新区胜利段改建工程（河源至紫金快速公路）","路线全长50.68公里，采用双向四车道一级公路技术标准，兼快速路功能，设计速度80公里/小时。",400174,"开展规划选址和用地预审、立项、用地用林报批等前期工作。","河源市公路事务中心","市公路事务中心"]
[3,"国道G236线东源县蓝口至黄村段改建工程","全长19.3公里，按一级公路建设。",85100,"编制工可，开展规划选址和用地预审、用地用林报批、环评等前期工作。","东源县公路事务中心","东源县政府"]
[4,"国道G236线龙川县赤光至丰稔段改建工程","全长36.7公里，按一级公路建设。",131200,"开展规划选址和用地预审、立项、用地用林报批、环评等前期工作。","龙川县公路局","龙川县政府"]
[5,"国道G238线龙川县龙母至铁场段改建工程","全长13.7公里，按二级公路改建。",32900,"开展规划选址和用地预审、立项、用地用林报批、环评等前期工作。","龙川县公路局","龙川县政府"]
[6,"国道G236线紫金县城龙潭至升平段改建工程","全长6.4公里，按一级公路建设。",29102,"开展规划选址和用地预审、立项、用地用林报批、环评等前期工作。","紫金县公路事务中心","紫金县政府"]
[7,"省道S230线东源乐村至义合渡口段公路","全长2.66公里，按二级公路建设，其中黄田东江大桥长405.4米，桥宽15米。",12137,"开展用地预审、用地用林报批等前期工作。","东源县交通运输局","东源县政府"]
[8,"省道S340线古竹东江大桥改建项目","改建古竹东江大桥。",30000,"开展规划选址和用地预审、立项、用地报批、环评等前期工作。","江东新区公路事务中心","江东新区管委会"]
[9,"江东新区智能停车设施建设项目","开发建设智慧停车平台、数据采集和发布平台、路内收费系统、智能道闸、汽车充电桩等。",31528,"开展规划选址和用地预审、立项、用地报批、环评等前期工作。","江东新区鑫晟投资有限公司","江东新区管委会"]
[10,"江东新区古竹镇供水引水工程","从新丰江水库引水至古竹镇自来水厂，建设加压泵房、铺设管道等。",25000,"开展规划选址和用地预审、立项、用地报批、环评等前期工作。","江东新区水利工程建设管理中心","江东新区管委会"]
[11,"河源岑田抽水蓄能电站","规划装机容量1200MW，安装4台单机容量为300MW的水泵水轮电动发电机组。",800000,"开展规划选址和用地预审、立项、用地报批、环评、节能评审等前期工作。","深能（河源）蓄能综合开发有限公司","东源县政府"]
[12,"河源东源天然气4×400MW级热电联产项目","占地约700亩，拟建设4×400MW级（9F级改进型）一拖一多轴燃气—蒸汽联合循环热电联产机组。",805000,"开展规划选址和用地预审、立项、用地报批、环评、节能评审等前期工作。","北京京能清洁能源电力股份有限公司","东源县政府"]
[13,"河源市学府大桥","路线全长约2.1千米，其中跨东江大桥（学府大桥）全桥总长约900米；东江东路北延线全长约1.37千米。",132400,"开展用地报批、环评、初步设计及概算批复等前期工作。","河源市城市开发投资有限公司","市国资委"]
[14,"河源市灯塔盆地顺天碧道(一期）工程","区段河道总长约10.5km，北起滑滩村，南至党演村，建设内容主要包括水安全提升工程、水环境维护工程、水生态保护与修复工程、景观与游憩系统构建工程等。",48600,"开展规划选址和用地预审、用地用林报批、环评、初步设计等前期工作。","河源市灯塔盆地乡村发展有限公司","市灯塔盆地农高区管委会"]
[15,"源城区工业园第四期（低碳产业园）项目","用地面积约1000亩，建设内容包括土地征收、房屋拆迁、土石方平整、市政管线建设、道路建设及其它配套等工程。",74300,"开展用林、用地报批等前期工作。","源城区工业园管委会","源城区政府"]
[16,"源城区工业园第五期扩园","用地面积9022.8亩，涉及林业用地4726亩，建设内容包括土地征收、房屋拆迁、土石方平整、市政管线建设、道路建设及其它配套等工程。",505000,"开展用林、用地报批等前期工作。","河源市源城区共创投资有限公司","源城区政府"]
[17,"江东新区产业园区（三期）0.73平方公里土地综合整治项目","包括0.73平方公里范围内的土地房屋征收和市政道路基础设施建设。",56470,"开展规划选址和用地预审、立项、用地报批、环评等前期工作。","河源市鋐晟开发投资有限公司","江东新区管委会"]
[18,"河源市建筑渣土消纳场","总占地面积约22.77公顷，主要建设建筑渣土消纳场（东区、西区联合堆高设计总库容约198.9万立方米）、建筑垃圾填埋场（设计库容约65万立方米）、污水处理厂、资源化处理厂及配套附属设施。",13198,"开展用地预审、用地用林、环评报批等前期工作。","河源市江东新区公用事业有限公司","江东新区管委会"]
["二","产业工程:8项",null,{"$f":"SUM(D26:D33)","v":1650000}]
[19,"深圳市特区建工科工集团钢结构构件（河源）产业基地","占地面积26.7万平方米，新建厂房、宿舍、办公楼，主要生产预制钢结构构件。",160000,"开展备案、环评、节能审查及用地等报批工作。","深圳市特区建工科工集团有限公司","源城区政府"]
[20,"源城区中欧益智产业基地","总用地面积16万平方米，总建筑面积35.3万平方米，新建13栋厂房、3栋人才公寓、1栋综合楼，主要生产科教用品、文化用品、益智教学教具等。",200000,"开展用地报批、环评等前期工作。","源城区理想纸业有限公司","源城区政府"]
[21,"广州昕曦冶金设备科技有限公司（源城区）智能制造产业基地","规划用地约5.4万平方米，主要生产冶金专用设备、工业自动控制系统装置、3D扫描及打印设备、金属成形机床制造、钢结构制造、锻件及粉末冶金制品、增材制造及激光制造设备等。",80000,"开展项目立项、用地报批、环评等前期工作。","广州昕曦冶金设备科技有限公司","源城区政府"]
[22,"龙川县纽恩泰空气能特种设备扩建项目","规划用地100亩，计划新建厂房、办公楼、宿舍及绿化等，主要生产空气能产品，预计年产2万台空气能设备。",50000,"开展立项、用地报批、环评等前期工作。","龙川纽恩泰空气能设备有限公司","龙川县政府"]
[23,"东源县名南环保多金属资源再生利用项目（原河源市胜利环境污染处理厂易址扩建）","总用地面积13.94万平方米，总建筑面积3.94万平方米，年处理35万吨危险废物，年产黑铜9500吨，冰铜8000吨。",80000,"开展重金属排放指标、环评、节能审查及用地等报批工作。","广东名南环保科技有限公司","东源县政府"]
[24,"岭南现代农业科学与技术广东省实验室河源灯塔盆地分中心","实验室规划用地总面积约300亩，作为实验室综合科研大楼、专家楼、研究生公寓和相关科研、生活配套设施建设用地以及各研究领域的科研基地用地，具体包括综合科研大楼、公共实验平台、科研和生活配套设施3个功能区。",180000,"开展规划选址和用地预审、立项、用地用林报批、环评等前期工作。","岭南现代农业科学与技术广东省实验室河源灯塔盆地分中心","市灯塔盆地农高区管委会"]
[25,"河源仙洞文旅康养项目","规划用地范围4035亩，建设用地1050亩。主要规划建设健康管理中心、中医药颐养康复中心、抗衰医美中心、飞翔主题园、亲子童趣园、高端度假酒店、康养社区、森林疗愈空间，研修中心、生态餐厅、综合服务中心等以及配套附属工程。",500000,"编制项目总体规划，申报项目建设用地指标。","河源市绿江南实业发展有限公司","市文化广电旅游体育局"]
[26,"保利勤诚达（河源）响水国际生态旅游度假区首期项目","首期占地面积约1600亩，总建筑面积约155万平方米，规划建设生态旅居产品，酒店、配套商业街，迎宾大道、道路等；规划k12高级中学、24班小学、幼儿园等教育功能；整体打造高端水平教育、度假疗养、商业服务、生态休闲、高端社区为一体的示范居住及优质教育功能区。",400000,"完成项目概念方案、项目首期控规、响水公园及葫芦坳公园控规批复。","河源市响水投资发展有限公司","源城区政府"]
["三","民生保障工程:16项",null,{"$f":"SUM(D35:D50)","v":581189}]
[27,"河源市疾病预防控制中心迁址新建项目","总用地面积2.2万平方米，总建筑面积3万平方米，主要建设1栋行政中心、1栋生物实验楼、1栋理化实验楼、1栋毒理实验楼、1栋卫生应急指挥中心、1栋危化品仓库楼、1栋疫苗冷链物流中心。",50000,"开展项目环评报批、初步设计等前期工作。","河源市疾病预防控制中心","市卫生健康局"]
[28,"河源市精神卫生中心二期工程","总用地面积3.65万平方米，总建筑面积2.9万平方米，主要建设1栋住院楼、1栋门诊楼、1栋培训大楼、1栋感染性疾病专科大楼及附属配套设施。",17500,"开展项目环评报批、初步设计等前期工作。","河源市精神卫生中心","市卫生健康局"]
[29,"河源市人民医院三期工程（综合大楼）建设项目","总用地面积1.5万平方米，总建筑面积7.5万平方米，建设1栋综合大楼，设置床位800张。",45000,"开展项目环评报批、初步设计等前期工作。","河源市人民医院","市卫生健康局"]
[30,"河源市妇幼保健院升级改造项目","升级改造面积7035平方米。",9300,"开展立项、初步设计等前期工作。","河源市妇幼保健院","市卫生健康局"]
[31,"源城区人民医院二期扩建项目","拟在医院后面新征收用地2万平方米，新建1栋15层综合楼，建筑面积3万平方米。",50000,"开展用地预审、立项、用地报批、环评等前期工作。","源城区人民医院","源城区政府"]
[32,"源城区东埔第一社区卫生服务中心","新建东埔街道第一社区卫生服务中心，占地面积5000平方米，总建筑面积4000平方米。",13500,"开展规划选址和用地预审、立项、用地报批、环评等前期工作。","源城区东埔第一社区卫生服务中心","源城区政府"]
[33,"紫金县精神卫生中心","总占地面积2.7万平方米，建筑面积1.5万平方米，新建门诊楼、住院楼、后勤楼、办公楼及附属配套设施，设置病床229张。",9585,"开展规划选址和用地预审、立项、用地报批、环评等前期工作。","紫金县卫健局","紫金县政府"]
[34,"河源中学新校区","占地面积20.4万平方米，总建筑面积13.8万平方米，新建教学楼、图书馆、宿舍楼、食堂等，办学规模为96个班级，在校生4800人。",97800,"开展规划选址和用地预审、立项、用地报批、环评等前期工作。","市教育局","市教育局"]
[35,"河源市田家炳中学新校区","初步拟迁建选址在市区北片区，占地约11万平方米，建筑面积9.4万平方米，新建教学楼、图书馆、学生宿舍、食堂等，办学规模为66个班，在校生3000人。",72000,"开展规划选址和用地预审、立项、用地报批、环评等前期工作。","市教育局","市教育局"]
[36,"河源市职业技术学校迁建项目","初步拟迁建于江东新区教育城或工业园区周边。占地面积约20万平方米，建筑面积13.9万平方米，新建教学楼、宿舍楼、实训楼、综合楼、食堂等，办学规模约6000人。",57112,"开展规划选址和用地预审、立项、用地报批、环评等前期工作。","市教育局","市教育局"]
[37,"河源市高新区职业技术学校新建项目","初步拟新建选择在市高新区。占地约20万平方米，建筑面积13.9万平方米，新建教学楼、宿舍楼、实训楼、综合楼、食堂等，办学规模约6000人。",57392,"开展规划选址和用地预审、立项、用地报批、环评等前期工作。","市教育局","市教育局"]
[38,"东源县第七小学","拟建于县第三小学旁边，占地面积2万平方米，建设校舍7826平方米，办学规模1200人。",13000,"开展规划选址和用地预审、立项、用地报批、环评等前期工作。","东源县教育局","东源县政府"]
[39,"东源县第八小学","拟建于霸王花丽江花园旁，占地面积2万平方米，拟设36个班，办学规模约1600人。",12000,"开展规划选址和用地预审、立项、用地报批、环评等前期工作。","东源县教育局","东源县政府"]
[40,"江东新区城东学校迁建项目","规划建设初中部36个班、小学部54个班的九年一贯制学校。",27000,"开展规划选址和用地预审、立项、用地报批、环评等前期工作。","江东新区社会事务局","江东新区管委会"]
[41,"江东新区屠宰场","规划占地总面积10万平方米，总建筑面积3万平方米，一期建设年屠宰生猪90万头、牛5万头、羊5万头的屠宰场，并配套建设病死动物无害化处理场；二期规划建设禽类待宰间、禽类屠宰间、禽类冷库、肉类制品加工车间等。",30000,"开展规划选址和用地预审、立项、用地用林报批、环评等前期工作。","江东新区公用事业有限公司","江东新区管委会"]
[42,"紫金县新体育馆","总占地面积5万平方米，总建筑面积2万平方米，设计5000个座位，设固定车位300个。",20000,"开展规划选址和用地预审、立项、用地报批、环评等前期工作。","紫金县文化广电旅游体育局","紫金县政府"]